[Event "DVM U10 2024"]
[Site "Duesseldorf"]
[Date "2024.12.27"]
[Round "2"]
[White "Brucker, Oscar"]
[Black "Ragavendra Prasanna, Shyam Sundar"]
[Result "1-0"]
[ECO "B08"]
[WhiteElo "1291"]
[BlackElo "1524"]
[Annotator "NA RC"]
[PlyCount "127"]
[EventDate "2024.12.23"]
[EventType "team-tourn"]
[EventRounds "7"]
[EventCountry "GER"]
[SourceTitle "playchess.com"]
[Source "ChessBase"]
[SourceQuality "1"]
[TimeControl "3300+5"]

1. d4 {[%emt 0:00:03]} Nf6 {[%emt 0:00:05]} 2. Nc3 {[%emt 0:00:33]} g6 {[%emt 0:00:06]} 3. e4 {[%emt 0:00:12]} d6 {[%emt 0:00:19]} 4. Nf3 {[%emt 0:00:18]} Bg7 {[%emt 0:00:11]} 5. Bf4 {[%emt 0:00:17]} Nbd7 {[%emt 0:00:14]} 6. Bc4 {[%emt 0:00:45]} O-O {[%emt 0:00:09]} 7. O-O {[%emt 0:00:03]} Re8 {[%emt 0:00:25]} 8. Re1 {[%emt 0:00:16]} e5 {[%emt 0:00:29]} 9. dxe5 {[%emt 0:00:53]} dxe5 {[%emt 0:00:23]} 10. Bxe5 {[%emt 0:00:14]} Nxe5 {[%emt 0:00:21]} 11. Qxd8 {[%emt 0:00:12]} Rxd8 {[%emt 0:00:15]} 12. Nxe5 {[%emt 0:00:12]} Rf8 {[%emt 0:00:43]} 13. Rad1 {[%emt 0:00:34]} Be6 {[%emt 0:00:15]} 14. Bxe6 {[%emt 0:01:29]} fxe6 {[%emt 0:00:09]} 15. Nd7 {[%emt 0:00:15]} Rf7 {[%emt 0:00:46]} 16. Nxf6+ {[%emt 0:00:40]} Bxf6 {[%emt 0:00:21]} 17. Rd3 {[%emt 0:03:06]} Raf8 {[%emt 0:01:02]} 18. f3 {[%emt 0:00:35]} Bh4 {[%emt 0:00:28]} 19. Red1 {[%emt 0:00:31]} Bg5 {[%emt 0:00:41]} 20. Rd7 {[%emt 0:01:16]} Be3+ {[%emt 0:00:38]} 21. Kf1 {[%emt 0:00:28]} Rxd7 {[%emt 0:01:26]} 22. Rxd7 {[%emt 0:00:20]} Bb6 {[%emt 0:00:16]} 23. Re7 {[%emt 0:00:48]} Rd8 {[%emt 0:00:23]} 24. Ke2 {[%emt 0:01:06]} Rd6 {[%emt 0:00:20]} 25. Re8+ {[%emt 0:01:08]} Kf7 {[%emt 0:00:33]} 26. Rb8 {[%emt 0:00:14]} Rd4 {[%emt 0:00:18]} 27. Rxb7 {[%emt 0:00:27]} Rb4 {[%emt 0:00:21]} 28. b3 {[%emt 0:00:48]} Rd4 {[%emt 0:01:20]} 29. Nb5 {[%emt 0:00:37]} Rd7 {[%emt 0:00:28]} 30. Nxa7 {[%emt 0:00:23]} Ba5 {[%emt 0:00:38]} 31. b4 {[%emt 0:00:39]} Bb6 {[%emt 0:00:23]} 32. Nc6 {[%emt 0:00:08]} Rd6 {[%emt 0:00:53]} 33. Ne5+ {[%emt 0:01:03]} Kf6 {[%emt 0:00:17]} 34. Nc4 {[%emt 0:00:18]} Rc6 {[%emt 0:00:38]} 35. Nxb6 {[%emt 0:01:32]} cxb6 {[%emt 0:00:10]} 36. Kd3 {[%emt 0:00:22]} e5 {[%emt 0:00:18]} 37. Rxh7 {[%emt 0:02:04]} Rd6+ {[%emt 0:00:17]} 38. Kc3 {[%emt 0:00:39]} Kg5 {[%emt 0:01:04]} 39. g3 {[%emt 0:00:47]} Rd1 {[%emt 0:01:34]} 40. a4 {[%emt 0:01:20]} Rf1 {[%emt 0:00:48]} 41. Rf7 {[%emt 0:00:49]} Rf2 {[%emt 0:01:01]} 42. h4+ {[%emt 0:00:27]} Kh6 {[%emt 0:00:26]} 43. a5 {[%emt 0:00:44]} bxa5 {[%emt 0:00:34]} 44. bxa5 {[%emt 0:00:14]} Rf1 {[%emt 0:00:10]} 45. a6 {[%emt 0:00:20]} Ra1 {[%emt 0:00:12]} 46. a7 {[%emt 0:00:04]} g5 {[%emt 0:00:20]} 47. hxg5+ {[%emt 0:00:28]} Kxg5 {[%emt 0:00:09]} 48. Kc4 {[%emt 0:00:10]} Kg6 {[%emt 0:00:13]} 49. Rb7 {[%emt 0:00:14]} Kf6 {[%emt 0:00:07]} 50. Kc5 {[%emt 0:00:12]} Ke6 {[%emt 0:00:11]} 51. Kc6 {[%emt 0:00:08]} Ra6+ {[%emt 0:00:19]} 52. Kc7 {[%emt 0:00:12]} Ke7 {[%emt 0:00:16]} 53. Kb8+ {[%emt 0:00:11]} Kd8 {[%emt 0:00:31]} 54. a8=Q {[%emt 0:00:08]} Rxa8+ {[%emt 0:00:13]} 55. Kxa8 {[%emt 0:00:16]} Kc8 {[%emt 0:00:06]} 56. Ka7 {[%emt 0:00:28]} Kd8 {[%emt 0:00:17]} 57. Kb6 {[%emt 0:00:12]} Kc8 {[%emt 0:00:08]} 58. Kc6 {[%emt 0:00:32]} Kd8 {[%emt 0:00:22]} 59. Ra7 {[%emt 0:00:46]} Ke8 {[%emt 0:00:09]} 60. Kd6 {[%emt 0:00:07]} Kf8 {[%emt 0:00:20]} 61. Ke6 {[%emt 0:00:19]} Kg8 {[%emt 0:00:11]} 62. Kf6 {[%emt 0:00:16]} Kh8 {[%emt 0:00:20]} 63. Kg6 {[%emt 0:00:14]} Kg8 {[%emt 0:00:25]} 64. Ra8# {[%emt 0:00:10]} 1-0

[Event "DVM U10 2024"]
[Site "Duesseldorf"]
[Date "2024.12.27"]
[Round "2"]
[White "Götz, Georg"]
[Black "Schonlau, Leopold"]
[Result "1-0"]
[ECO "C55"]
[WhiteElo "1284"]
[BlackElo "1533"]
[Annotator "NA"]
[PlyCount "137"]
[EventDate "2024.12.23"]
[EventType "team-tourn"]
[EventRounds "7"]
[EventCountry "GER"]
[SourceTitle "playchess.com"]
[Source "ChessBase"]
[SourceQuality "1"]
[TimeControl "3300+5"]

1. e4 {[%emt 0:00:03]} e5 {[%emt 0:00:02]} 2. Nf3 {[%emt 0:00:07]} Nc6 {[%emt 0:00:05]} 3. Nc3 {[%emt 0:00:18]} Nf6 {[%emt 0:00:45]} 4. Bc4 {[%emt 0:00:24]} Nxe4 {[%emt 0:00:16]} 5. Bxf7+ {[%emt 0:00:55]} Kxf7 {[%emt 0:00:17]} 6. Nxe4 {[%emt 0:00:11]} d5 {[%emt 0:00:18]} 7. Neg5+ {[%emt 0:01:09]} Ke8 {[%emt 0:00:29]} 8. d4 {[%emt 0:01:30]} e4 {[%emt 0:02:21]} 9. Ne5 {[%emt 0:00:48]} Nxe5 {[%emt 0:00:24]} 10. dxe5 {[%emt 0:00:41]} Be7 {[%emt 0:00:15]} 11. Qh5+ {[%emt 0:02:10]} g6 {[%emt 0:00:20]} 12. Qh6 {[%emt 0:02:43]} Bf8 {[%emt 0:00:22]} 13. Qh4 {[%emt 0:00:56]} Bg7 {[%emt 0:01:10]} 14. Qf4 {[%emt 0:05:31]} Rf8 {[%emt 0:00:42]} 15. Qg3 {[%emt 0:01:24]} Qe7 {[%emt 0:02:21]} 16. Nxh7 {[%emt 0:00:45]} Bxe5 {[%emt 0:01:51]} 17. Qxg6+ {[%emt 0:00:30]} Qf7 {[%emt 0:01:05]} 18. Nxf8 {[%emt 0:01:10]} Kxf8 {[%emt 0:00:08]} 19. Qxf7+ {[%emt 0:00:34]} Kxf7 {[%emt 0:00:08]} 20. c3 {[%emt 0:00:39]} Bd7 {[%emt 0:00:20]} 21. Be3 {[%emt 0:00:08]} Rg8 {[%emt 0:00:09]} 22. g3 {[%emt 0:00:20]} b6 {[%emt 0:00:39]} 23. h4 {[%emt 0:00:23]} c5 {[%emt 0:00:14]} 24. Rd1 {[%emt 0:00:21]} Be6 {[%emt 0:00:49]} 25. a3 {[%emt 0:01:22]} Bg4 {[%emt 0:00:13]} 26. Rxd5 {[%emt 0:00:31]} Ke6 {[%emt 0:00:19]} 27. Rd2 {[%emt 0:00:50]} a5 {[%emt 0:00:33]} 28. Rg1 {[%emt 0:00:18]} Bf6 {[%emt 0:00:26]} 29. Bf4 {[%emt 0:00:31]} Be7 {[%emt 0:00:39]} 30. Bc7 {[%emt 0:01:02]} b5 {[%emt 0:00:28]} 31. Bxa5 {[%emt 0:00:36]} Bf3 {[%emt 0:00:07]} 32. Rf1 {[%emt 0:01:14]} Bd6 {[%emt 0:00:55]} 33. Re2 {[%emt 0:00:58]} Bxe2 {[%emt 0:00:45]} 34. Kxe2 {[%emt 0:00:16]} c4 {[%emt 0:00:42]} 35. Bb4 {[%emt 0:01:04]} Bc7 {[%emt 0:00:15]} 36. Ke3 {[%emt 0:00:26]} Kd5 {[%emt 0:00:35]} 37. Ke2 {[%emt 0:01:00]} Be5 {[%emt 0:01:03]} 38. Rd1+ {[%emt 0:00:36]} Ke6 {[%emt 0:00:23]} 39. Bc5 {[%emt 0:00:20]} Kf5 {[%emt 0:01:24]} 40. Bd6 {[%emt 0:00:54]} Bf6 {[%emt 0:00:57]} 41. Bf4 {[%emt 0:01:02]} Ke6 {[%emt 0:01:28]} 42. Rd6+ {[%emt 0:00:30]} Ke7 {[%emt 0:00:30]} 43. Rd5 {[%emt 0:00:25]} Ke6 {[%emt 0:02:19]} 44. Rxb5 {[%emt 0:00:31]} Ra8 {[%emt 0:01:05]} 45. Rc5 {[%emt 0:00:39]} Ra4 {[%emt 0:01:06]} 46. Ke3 {[%emt 0:00:44]} Be7 {[%emt 0:00:26]} 47. Re5+ {[%emt 0:00:24]} Kf6 {[%emt 0:00:16]} 48. Rxe4 {[%emt 0:00:38]} Bc5+ {[%emt 0:00:56]} 49. Kf3 {[%emt 0:00:43]} Ra5 {[%emt 0:00:50]} 50. Bg5+ {[%emt 0:00:35]} Kf7 {[%emt 0:00:11]} 51. Re5 {[%emt 0:00:28]} Rb5 {[%emt 0:00:31]} 52. Be3 {[%emt 0:00:40]} Rxb2 {[%emt 0:00:28]} 53. Rxc5 {[%emt 0:00:36]} Rb3 {[%emt 0:00:17]} 54. Rxc4 {[%emt 0:00:38]} Rxa3 {[%emt 0:00:31]} 55. h5 {[%emt 0:00:12]} Kg7 {[%emt 0:00:18]} 56. h6+ {[%emt 0:00:20]} Kh7 {[%emt 0:00:10]} 57. Rc7+ {[%emt 0:01:19]} Kh8 {[%emt 0:00:30]} 58. h7 {[%emt 0:00:30]} Ra4 {[%emt 0:00:09]} 59. Bd4+ {[%emt 0:00:18]} Rxd4 {[%emt 0:00:15]} 60. Rc8+ {[%emt 0:00:13]} Kxh7 {[%emt 0:00:14]} 61. cxd4 {[%emt 0:00:25]} Kg7 {[%emt 0:00:13]} 62. Re8 {[%emt 0:00:16]} Kf7 {[%emt 0:00:12]} 63. Re4 {[%emt 0:00:04]} Kf6 {[%emt 0:00:14]} 64. d5 {[%emt 0:00:35]} Kf7 {[%emt 0:00:05]} 65. d6 {[%emt 0:00:19]} Kf6 {[%emt 0:00:05]} 66. d7 {[%emt 0:00:20]} Kg5 {[%emt 0:00:15]} 67. d8=Q+ {[%emt 0:00:29]} Kh5 {[%emt 0:00:48]} 68. Rg4 {[%emt 0:00:35]} Kh6 {[%emt 0:00:13]} 69. Qh8# {[%emt 0:00:29]} 1-0

[Event "DVM U10 2024"]
[Site "Duesseldorf"]
[Date "2024.12.27"]
[Round "2"]
[White "Studdert, Levi"]
[Black "von Bassewitz, Friedrich"]
[Result "1-0"]
[ECO "C07"]
[WhiteElo "1234"]
[BlackElo "1163"]
[Annotator "NA RC"]
[PlyCount "121"]
[EventDate "2024.12.23"]
[EventType "team-tourn"]
[EventRounds "7"]
[EventCountry "GER"]
[SourceTitle "playchess.com"]
[Source "ChessBase"]
[SourceQuality "1"]
[TimeControl "3300+5"]

1. e4 {[%emt 0:00:01]} e6 {[%emt 0:00:11]} 2. d4 {[%emt 0:00:14]} d5 {[%emt 0:00:11]} 3. Nd2 {[%emt 0:00:21]} c5 {[%emt 0:00:29]} 4. c3 {[%emt 0:00:24]} Nc6 {[%emt 0:00:26]} 5. Ngf3 {[%emt 0:00:27]} Qb6 {[%emt 0:00:56]} 6. exd5 {[%emt 0:01:54]} exd5 {[%emt 0:00:26]} 7. Nb3 {[%emt 0:00:34]} c4 {[%emt 0:01:45]} 8. Nbd2 {[%emt 0:00:40]} Nf6 {[%emt 0:01:18]} 9. Be2 {[%emt 0:01:41]} Bd6 {[%emt 0:00:33]} 10. O-O {[%emt 0:00:14]} O-O {[%emt 0:00:22]} 11. Re1 {[%emt 0:00:27]} Bg4 {[%emt 0:00:41]} 12. Nf1 {[%emt 0:00:29]} Ne7 {[%emt 0:03:23]} 13. Ng3 {[%emt 0:00:37]} Ng6 {[%emt 0:00:58]} 14. Bg5 {[%emt 0:00:46]} Be7 {[%emt 0:01:51]} 15. Qc2 {[%emt 0:01:11]} h6 {[%emt 0:03:18]} 16. Bd2 {[%emt 0:01:39]} Bd6 {[%emt 0:01:52]} 17. b3 {[%emt 0:02:11]} cxb3 {[%emt 0:01:49]} 18. axb3 {[%emt 0:00:24]} Rac8 {[%emt 0:01:17]} 19. c4 {[%emt 0:05:46]} Bxf3 {[%emt 0:01:00]} 20. Bxf3 {[%emt 0:01:53]} Qxd4 {[%emt 0:00:15]} 21. Be3 {[%emt 0:00:23]} Qe5 {[%emt 0:02:10]} 22. Bc5 {[%emt 0:02:05]} Qf4 {[%emt 0:04:22]} 23. Bxd6 {[%emt 0:02:12]} Qxd6 {[%emt 0:00:15]} 24. Red1 {[%emt 0:00:49]} Qc5 {[%emt 0:00:58]} 25. Bxd5 {[%emt 0:00:31]} Nxd5 {[%emt 0:00:19]} 26. Rxd5 {[%emt 0:00:33]} Qxd5 {[%emt 0:00:20]} 27. Qxg6 {[%emt 0:00:52]} Qxg2+ {[%emt 0:01:41]} 28. Kxg2 {[%emt 0:00:08]} fxg6 {[%emt 0:00:04]} 29. Rxa7 {[%emt 0:00:44]} Rf7 {[%emt 0:01:00]} 30. Ne4 {[%emt 0:00:55]} b5 {[%emt 0:00:48]} 31. Rxf7 {[%emt 0:00:45]} Kxf7 {[%emt 0:00:21]} 32. Nd6+ {[%emt 0:00:14]} Ke6 {[%emt 0:00:26]} 33. Nxc8 {[%emt 0:00:13]} bxc4 {[%emt 0:00:12]} 34. bxc4 {[%emt 0:00:44]} Kd7 {[%emt 0:00:06]} 35. Nb6+ {[%emt 0:00:25]} Kc6 {[%emt 0:00:08]} 36. Nd5 {[%emt 0:00:19]} Kc5 {[%emt 0:00:02]} 37. Ne7 {[%emt 0:00:23]} Kxc4 {[%emt 0:00:17]} 38. Nxg6 {[%emt 0:00:18]} Kd5 {[%emt 0:00:06]} 39. Nf4+ {[%emt 0:00:13]} Ke5 {[%emt 0:00:15]} 40. Kg3 {[%emt 0:00:26]} g5 {[%emt 0:00:23]} 41. Nh3 {[%emt 0:00:20]} Kf5 {[%emt 0:00:22]} 42. f4 {[%emt 0:00:12]} g4 {[%emt 0:00:35]} 43. Nf2 {[%emt 0:00:19]} h5 {[%emt 0:00:41]} 44. h3 {[%emt 0:00:26]} gxh3 {[%emt 0:02:14]} 45. Nxh3 {[%emt 0:00:15]} Kf6 {[%emt 0:00:45]} 46. Nf2 {[%emt 0:01:09]} Kf5 {[%emt 0:00:24]} 47. Nd3 {[%emt 0:00:41]} Kf6 {[%emt 0:00:34]} 48. Kf3 {[%emt 0:00:59]} Kg6 {[%emt 0:00:42]} 49. Nf2 {[%emt 0:00:16]} Kf5 {[%emt 0:00:32]} 50. Nh3 {[%emt 0:00:18]} h4 {[%emt 0:02:27]} 51. Ng5 {[%emt 0:00:36]} h3 {[%emt 0:11:06]} 52. Nxh3 {[%emt 0:02:02]} Kf6 {[%emt 0:00:11]} 53. Ke4 {[%emt 0:00:00]} Ke6 {[%emt 0:00:08]} 54. Ng5+ {[%emt 0:00:00]} Kf6 {[%emt 0:00:06]} 55. f5 {[%emt 0:00:00]} Kg7 {[%emt 0:01:18]} 56. Ke5 {[%emt 0:00:00]} Kf8 {[%emt 0:00:09]} 57. Kf6 {[%emt 0:00:00]} Kg8 {[%emt 0:00:06]} 58. Ke7 {[%emt 0:00:00]} Kh8 {[%emt 0:00:13]} 59. f6 {[%emt 0:00:04]} Kg8 {[%emt 0:00:03]} 60. f7+ {[%emt 0:00:18]} Kh8 {[%emt 0:00:09]} 61. f8=Q# {[%emt 0:00:14]} 1-0

[Event "DVM U10 2024"]
[Site "Duesseldorf"]
[Date "2024.12.27"]
[Round "2"]
[White "Rogozhin, Georg"]
[Black "Glaser-Gallion, Ludwig"]
[Result "0-1"]
[ECO "B13"]
[WhiteElo "1232"]
[BlackElo "1358"]
[Annotator "NA RC"]
[PlyCount "86"]
[EventDate "2024.12.23"]
[EventType "team-tourn"]
[EventRounds "7"]
[EventCountry "GER"]
[SourceTitle "playchess.com"]
[Source "ChessBase"]
[SourceQuality "1"]
[TimeControl "3300+5"]

1. e4 {[%emt 0:00:01]} c6 {[%emt 0:00:21]} 2. Nc3 {[%emt 0:00:06]} d5 {[%emt 0:00:08]} 3. exd5 {[%emt 0:00:07]} cxd5 {[%emt 0:00:07]} 4. Bb5+ {[%emt 0:00:07]} Nc6 {[%emt 0:00:46]} 5. d4 {[%emt 0:00:06]} Nf6 {[%emt 0:00:14]} 6. Nge2 {[%emt 0:00:11]} Bf5 {[%emt 0:01:19]} 7. Bf4 {[%emt 0:00:13]} e6 {[%emt 0:00:57]} 8. O-O {[%emt 0:03:49]} Bb4 {[%emt 0:00:38]} 9. Ng3 {[%emt 0:00:20]} Bg6 {[%emt 0:01:09]} 10. Bxc6+ {[%emt 0:00:19]} bxc6 {[%emt 0:00:12]} 11. Na4 {[%emt 0:00:12]} Nd7 {[%emt 0:03:21]} 12. c3 {[%emt 0:00:10]} Be7 {[%emt 0:00:20]} 13. Re1 {[%emt 0:01:19]} O-O {[%emt 0:00:23]} 14. Nh5 {[%emt 0:00:28]} Rc8 {[%emt 0:04:50]} 15. b4 {[%emt 0:00:28]} Re8 {[%emt 0:03:29]} 16. a3 {[%emt 0:00:19]} a5 {[%emt 0:02:00]} 17. Be3 {[%emt 0:01:59]} axb4 {[%emt 0:02:09]} 18. axb4 {[%emt 0:00:47]} Ra8 {[%emt 0:00:02]} 19. Nf4 {[%emt 0:00:21]} Bf5 {[%emt 0:01:26]} 20. h3 {[%emt 0:00:53]} Nb6 {[%emt 0:06:11]} 21. Nh5 {[%emt 0:01:46]} Bg6 {[%emt 0:01:28]} 22. Ng3 {[%emt 0:01:08]} Nc4 {[%emt 0:01:39]} 23. Qe2 {[%emt 0:01:20]} Bd6 {[%emt 0:01:11]} 24. Qg4 {[%emt 0:00:59]} Qc7 {[%emt 0:02:36]} 25. Nh5 {[%emt 0:06:11]} Ra7 {[%emt 0:04:55]} 26. Bf4 {[%emt 0:01:53]} Bxf4 {[%emt 0:01:16]} 27. Nxf4 {[%emt 0:00:10]} Rea8 {[%emt 0:00:13]} 28. Nxg6 {[%emt 0:00:56]} hxg6 {[%emt 0:00:13]} 29. Qd1 {[%emt 0:00:33]} Nb2 {[%emt 0:03:00]} 30. Nxb2 {[%emt 0:00:33]} Rxa1 {[%emt 0:00:10]} 31. Qxa1 {[%emt 0:00:01]} Rxa1 {[%emt 0:00:11]} 32. Rxa1 {[%emt 0:01:24]} Kf8 {[%emt 0:01:09]} 33. Kf1 {[%emt 0:00:18]} Ke7 {[%emt 0:00:09]} 34. Ke2 {[%emt 0:00:06]} Kf6 {[%emt 0:00:21]} 35. Kf3 {[%emt 0:00:14]} Kf5 {[%emt 0:00:26]} 36. g4+ {[%emt 0:00:40]} Kg5 {[%emt 0:00:29]} 37. Nd3 {[%emt 0:00:35]} Qb6 {[%emt 0:02:12]} 38. Nf4 {[%emt 0:00:31]} Qb8 {[%emt 0:01:07]} 39. Nd3 {[%emt 0:00:23]} Qb5 {[%emt 0:00:24]} 40. Nf4 {[%emt 0:00:19]} Qc4 {[%emt 0:00:26]} 41. Rc1 {[%emt 0:00:27]} e5 {[%emt 0:00:19]} 42. h4+ {[%emt 0:00:22]} Kxh4 {[%emt 0:00:56]} 43. dxe5 {[%emt 0:00:32]} Qe4# {[%emt 0:00:02]} 0-1

[Event "DVM U10 2024"]
[Site "Duesseldorf"]
[Date "2024.12.27"]
[Round "2"]
[White "Karabetyan, Levon"]
[Black "Elli, Emeric"]
[Result "1/2-1/2"]
[ECO "C77"]
[WhiteElo "1230"]
[BlackElo "1574"]
[Annotator "NA RC"]
[PlyCount "93"]
[EventDate "2024.12.23"]
[EventType "team-tourn"]
[EventRounds "7"]
[EventCountry "GER"]
[SourceTitle "playchess.com"]
[Source "ChessBase"]
[SourceQuality "1"]
[TimeControl "3300+5"]

1. e4 {[%emt 0:00:04]} e5 {[%emt 0:00:02]} 2. Nf3 {[%emt 0:00:16]} Nc6 {[%emt 0:00:07]} 3. Bb5 {[%emt 0:00:09]} a6 {[%emt 0:00:12]} 4. Ba4 {[%emt 0:00:08]} Nf6 {[%emt 0:00:13]} 5. d3 {[%emt 0:00:15]} h6 {[%emt 0:00:16]} 6. c3 {[%emt 0:00:09]} d6 {[%emt 0:01:00]} 7. h3 {[%emt 0:00:18]} Be6 {[%emt 0:00:09]} 8. Nbd2 {[%emt 0:00:24]} b5 {[%emt 0:00:34]} 9. Bb3 {[%emt 0:00:25]} d5 {[%emt 0:00:23]} 10. O-O {[%emt 0:03:10]} Bd6 {[%emt 0:00:15]} 11. Re1 {[%emt 0:01:15]} O-O {[%emt 0:00:33]} 12. Nf1 {[%emt 0:01:10]} Qd7 {[%emt 0:00:33]} 13. Ng3 {[%emt 0:01:30]} a5 {[%emt 0:01:43]} 14. a4 {[%emt 0:01:27]} Rfb8 {[%emt 0:02:55]} 15. axb5 {[%emt 0:04:18]} Rxb5 {[%emt 0:00:19]} 16. Ba4 {[%emt 0:00:14]} Rb6 {[%emt 0:01:24]} 17. exd5 {[%emt 0:02:33]} Nxd5 {[%emt 0:00:58]} 18. Nxe5 {[%emt 0:01:06]} Bxe5 {[%emt 0:00:36]} 19. Rxe5 {[%emt 0:00:09]} Qc8 {[%emt 0:00:40]} 20. Bxc6 {[%emt 0:01:31]} Rxc6 {[%emt 0:00:13]} 21. c4 {[%emt 0:03:13]} Nf6 {[%emt 0:00:45]} 22. Raxa5 {[%emt 0:01:02]} Rb8 {[%emt 0:01:04]} 23. Qf3 {[%emt 0:02:24]} Rd6 {[%emt 0:01:05]} 24. c5 {[%emt 0:04:17]} Rd7 {[%emt 0:00:14]} 25. Ra3 {[%emt 0:02:09]} Bd5 {[%emt 0:05:39]} 26. Qf5 {[%emt 0:02:59]} Be6 {[%emt 0:00:00]} 27. Qf4 {[%emt 0:02:48]} Nd5 {[%emt 0:00:00]} 28. Qh4 {[%emt 0:02:07]} Nb4 {[%emt 0:00:36]} 29. d4 {[%emt 0:02:49]} Nc2 {[%emt 0:03:22]} 30. Rd3 {[%emt 0:00:00]} Rb4 {[%emt 0:01:05]} 31. Qe4 {[%emt 0:02:08]} Rbxd4 {[%emt 0:02:57]} 32. Rxd4 {[%emt 0:00:30]} Nxd4 {[%emt 0:00:15]} 33. Ne2 {[%emt 0:01:56]} Nxe2+ {[%emt 0:04:05]} 34. Qxe2 {[%emt 0:00:11]} Qd8 {[%emt 0:00:23]} 35. Kh2 {[%emt 0:01:01]} Qf6 {[%emt 0:01:20]} 36. b4 {[%emt 0:01:23]} Bc4 {[%emt 0:00:56]} 37. Qe4 {[%emt 0:00:55]} Be6 {[%emt 0:00:24]} 38. Bb2 {[%emt 0:00:30]} Qxf2 {[%emt 0:00:28]} 39. Bc3 {[%emt 0:00:56]} Qa2 {[%emt 0:01:07]} 40. b5 {[%emt 0:00:17]} Qb3 {[%emt 0:00:28]} 41. Be1 {[%emt 0:00:31]} Qxb5 {[%emt 0:00:35]} 42. c6 {[%emt 0:00:13]} Rd5 {[%emt 0:00:06]} 43. Rxd5 {[%emt 0:00:07]} Qxd5 {[%emt 0:00:13]} 44. Qxd5 {[%emt 0:00:01]} Bxd5 {[%emt 0:00:15]} 45. Bg3 {[%emt 0:00:02]} Bxc6 {[%emt 0:00:11]} 46. Bxc7 {[%emt 0:00:01]} Kf8 {[%emt 0:00:15]} 47. g4 {[%emt 0:00:06]} 1/2-1/2

[Event "DVM U10 2024"]
[Site "Duesseldorf"]
[Date "2024.12.27"]
[Round "2"]
[White "Wüstenberg, Jan"]
[Black "Essers, Mathilda Marie"]
[Result "1-0"]
[ECO "B30"]
[WhiteElo "1221"]
[BlackElo "1435"]
[Annotator "NA RC"]
[PlyCount "85"]
[EventDate "2024.12.23"]
[EventType "team-tourn"]
[EventRounds "7"]
[EventCountry "GER"]
[SourceTitle "playchess.com"]
[Source "ChessBase"]
[SourceQuality "1"]
[TimeControl "3300+5"]

1. e4 {[%emt 0:00:00]} c5 {[%emt 0:00:07]} 2. Nf3 {[%emt 0:00:09]} e6 {[%emt 0:00:11]} 3. Nc3 {[%emt 0:00:09]} Nc6 {[%emt 0:00:16]} 4. Bc4 {[%emt 0:00:30]} a6 {[%emt 0:00:38]} 5. O-O {[%emt 0:00:35]} Qc7 {[%emt 0:00:13]} 6. d3 {[%emt 0:00:10]} d6 {[%emt 0:00:11]} 7. Bf4 {[%emt 0:00:42]} Be7 {[%emt 0:01:23]} 8. Re1 {[%emt 0:00:09]} e5 {[%emt 0:00:32]} 9. Bg3 {[%emt 0:00:22]} h6 {[%emt 0:00:27]} 10. Nd5 {[%emt 0:00:17]} Qa5 {[%emt 0:01:51]} 11. Qd2 {[%emt 0:03:48]} Qxd2 {[%emt 0:00:16]} 12. Nxd2 {[%emt 0:00:06]} Bd8 {[%emt 0:00:37]} 13. Bh4 {[%emt 0:01:05]} Nge7 {[%emt 0:01:21]} 14. Re3 {[%emt 0:00:34]} Nxd5 {[%emt 0:00:18]} 15. exd5 {[%emt 0:00:21]} Nd4 {[%emt 0:00:51]} 16. Rc1 {[%emt 0:00:54]} Bxh4 {[%emt 0:00:14]} 17. c3 {[%emt 0:00:29]} Bg5 {[%emt 0:00:18]} 18. cxd4 {[%emt 0:02:53]} Bxe3 {[%emt 0:00:11]} 19. fxe3 {[%emt 0:00:08]} cxd4 {[%emt 0:00:43]} 20. exd4 {[%emt 0:00:46]} O-O {[%emt 0:00:33]} 21. dxe5 dxe5 {[%emt 0:00:20]} 22. Re1 {[%emt 0:00:21]} Re8 {[%emt 0:00:24]} 23. Nf3 {[%emt 0:00:13]} f6 {[%emt 0:00:32]} 24. d4 {[%emt 0:01:51]} e4 {[%emt 0:00:57]} 25. Nd2 {[%emt 0:00:34]} e3 {[%emt 0:00:31]} 26. Nb3 {[%emt 0:00:06]} Kh8 {[%emt 0:00:19]} 27. Nc5 {[%emt 0:00:14]} Bg4 {[%emt 0:02:01]} 28. h3 {[%emt 0:00:06]} b6 {[%emt 0:00:35]} 29. Nxa6 {[%emt 0:00:08]} Rac8 {[%emt 0:01:33]} 30. Bb5 {[%emt 0:00:43]} Re4 {[%emt 0:01:36]} 31. hxg4 {[%emt 0:00:19]} Rxg4 {[%emt 0:00:31]} 32. Bd7 {[%emt 0:00:02]} Ra8 {[%emt 0:01:12]} 33. Bxg4 {[%emt 0:00:10]} Rxa6 {[%emt 0:00:12]} 34. Rxe3 {[%emt 0:00:08]} Rxa2 {[%emt 0:00:12]} 35. Bf5 {[%emt 0:00:06]} Ra1+ {[%emt 0:00:50]} 36. Kh2 {[%emt 0:00:05]} g5 {[%emt 0:00:34]} 37. d6 {[%emt 0:00:08]} Ra8 {[%emt 0:00:41]} 38. d7 {[%emt 0:00:06]} Kg7 {[%emt 0:00:24]} 39. Re8 {[%emt 0:00:07]} Rxe8 {[%emt 0:00:58]} 40. dxe8=Q {[%emt 0:00:08]} h5 {[%emt 0:00:23]} 41. Qe7+ {[%emt 0:00:08]} Kg8 {[%emt 0:00:23]} 42. Be6+ {[%emt 0:00:09]} Kh8 {[%emt 0:00:14]} 43. Qf7 {[%emt 0:00:09]} 1-0

[Event "DVM U10 2024"]
[Site "Duesseldorf"]
[Date "2024.12.27"]
[Round "2"]
[White "Nickel, Alexander"]
[Black "Lüttgen, Jona"]
[Result "0-1"]
[ECO "C59"]
[WhiteElo "1200"]
[BlackElo "1412"]
[Annotator "NA RC"]
[PlyCount "68"]
[EventDate "2024.12.23"]
[EventType "team-tourn"]
[EventRounds "7"]
[EventCountry "GER"]
[SourceTitle "playchess.com"]
[Source "ChessBase"]
[SourceQuality "1"]
[TimeControl "3300+5"]

1. e4 {[%emt 0:00:02]} e5 {[%emt 0:00:05]} 2. Nf3 {[%emt 0:00:01]} Nc6 {[%emt 0:00:16]} 3. Bc4 {[%emt 0:00:05]} Nf6 {[%emt 0:00:09]} 4. Ng5 {[%emt 0:00:16]} d5 {[%emt 0:00:11]} 5. exd5 {[%emt 0:00:07]} Na5 {[%emt 0:00:06]} 6. Bb5+ {[%emt 0:00:04]} c6 {[%emt 0:00:08]} 7. dxc6 {[%emt 0:00:02]} bxc6 {[%emt 0:00:11]} 8. Be2 {[%emt 0:00:34]} h6 {[%emt 0:00:32]} 9. Nf3 {[%emt 0:00:19]} e4 {[%emt 0:00:07]} 10. Ng1 {[%emt 0:02:04]} Bc5 {[%emt 0:00:38]} 11. a3 {[%emt 0:00:38]} Rb8 {[%emt 0:00:53]} 12. b4 {[%emt 0:01:54]} Bxf2+ {[%emt 0:00:32]} 13. Kxf2 {[%emt 0:01:46]} Qd4+ {[%emt 0:00:07]} 14. Ke1 {[%emt 0:00:26]} Qxa1 {[%emt 0:00:14]} 15. Nc3 {[%emt 0:00:15]} Nb7 {[%emt 0:00:58]} 16. d3 {[%emt 0:01:30]} Qxc3+ {[%emt 0:00:15]} 17. Bd2 {[%emt 0:00:21]} Qd4 {[%emt 0:01:09]} 18. dxe4 {[%emt 0:01:09]} Nxe4 {[%emt 0:00:22]} 19. Be3 {[%emt 0:02:19]} Qxe3 {[%emt 0:00:14]} 20. Qd3 {[%emt 0:01:50]} Qf2+ {[%emt 0:01:07]} 21. Kd1 {[%emt 0:00:01]} Qxg2 {[%emt 0:00:42]} 22. Qf3 {[%emt 0:02:12]} Qxh1 {[%emt 0:00:39]} 23. Qe3 {[%emt 0:02:31]} O-O {[%emt 0:01:02]} 24. Bd3 {[%emt 0:02:56]} Bg4+ {[%emt 0:00:36]} 25. Kc1 {[%emt 0:00:35]} Nc3 {[%emt 0:00:57]} 26. b5 {[%emt 0:07:51]} Be2 {[%emt 0:01:06]} 27. Bf5 {[%emt 0:03:10]} Bxb5 {[%emt 0:00:58]} 28. a4 {[%emt 0:04:28]} Qxg1+ {[%emt 0:00:14]} 29. Qxg1 {[%emt 0:00:29]} Ne2+ {[%emt 0:00:05]} 30. Kb1 {[%emt 0:00:15]} Nxg1 {[%emt 0:00:20]} 31. axb5 {[%emt 0:00:05]} Nd6 {[%emt 0:00:15]} 32. Bd3 {[%emt 0:00:21]} Rxb5+ {[%emt 0:00:09]} 33. Ka2 {[%emt 0:01:06]} Rfb8 {[%emt 0:00:25]} 34. c3 {[%emt 0:01:38]} Ra5# {[%emt 0:00:06]} 0-1